fUSD/lending_fUSD_20250414
["ID","MTS","AMOUNT","RATE_DAILY","PERIOD"]
[357960597,1744620643201,-501.94708218,0.00019178,2]
[357960599,1744620643211,-611.83,0.00019178,2]
[357960601,1744620643221,-548.40695254,0.00019178,2]
[357960603,1744620643230,-500.0,0.00019178,2]
[357960604,1744620643241,-500.0,0.00019178,2]
[357960605,1744620643249,-500.0,0.00019178,2]
[357960606,1744620643258,-500.0,0.00019178,2]
[357960607,1744620643267,-500.0,0.00019178,2]
[357960608,1744620643276,-500.0,0.00019178,2]
[357960609,1744620643285,-516.96975625,0.00019178,2]
[357960610,1744620643294,-500.0,0.00019178,2]
[357960611,1744620643303,-500.0,0.00019178,2]
[357960612,1744620643314,-500.0,0.00019178,2]
[357960613,1744620643330,-1708.96,0.00019178,2]
[357960614,1744620643339,-150.0,0.00019178,2]
[357960616,1744620643348,-500.0,0.00019178,2]
[357960618,1744620643359,-500.0,0.00019178,2]
[357960619,1744620643369,-500.0,0.00019178,2]
[357960621,1744620643379,-520.37035492,0.00019178,2]
[357960623,1744620643389,-500.0,0.00019178,2]
[357960625,1744620643398,-500.0,0.00019178,2]
[357960627,1744620643409,-541.29,0.00019178,2]
[357960630,1744620643418,-500.0,0.00019178,2]
[357960631,1744620643428,-500.0,0.00019178,2]
[357960633,1744620643437,-500.0,0.00019178,2]
[357960635,1744620643447,-500.0,0.00019178,2]
[357960637,1744620643456,-613.74,0.00019178,2]
[357960639,1744620643465,-500.0,0.00019178,2]
[357960641,1744620643475,-509.49675617,0.00019178,2]
[357960643,1744620643485,-18004.62,0.00019178,2]
[357960645,1744620643494,-500.0,0.00019178,2]
[357960647,1744620643503,-500.0,0.00019178,2]
[357960649,1744620643513,-508.08259493,0.00019178,2]
[357960651,1744620643521,-500.0,0.00019178,2]
[357960653,1744620643531,-500.0,0.00019178,2]
[357960655,1744620643540,-500.0,0.00019178,2]
[357960657,1744620643549,-500.0,0.00019178,2]
[357960659,1744620643559,-500.0,0.00019178,2]
[357960661,1744620643568,-518.92686347,0.00019178,2]
[357960663,1744620643577,-526.33,0.00019178,2]
[357960665,1744620643586,-500.0,0.00019178,2]
[357960667,1744620643596,-501.92305592,0.00019178,2]
[357960669,1744620643606,-505.25394516,0.00019178,2]
[357960671,1744620643615,-500.0,0.00019178,2]
[357960673,1744620643624,-500.0,0.00019178,2]
[357960675,1744620643633,-500.0,0.00019178,2]
[357960677,1744620643642,-500.0,0.00019178,2]
[357960679,1744620643651,-644.23,0.00019178,2]
[357960681,1744620643660,-500.0,0.00019178,2]
[357960683,1744620643670,-500.0,0.00019178,2]
[357960685,1744620643679,-433.9582706,0.00019178,2]
[357960687,1744620643692,-66.0417294,0.00019178,2]
[357960689,1744620643702,-500.0,0.00019178,2]
[357960691,1744620643711,-21.97624382,0.00019178,2]
[357960694,1744620643727,-478.02375618,0.00019178,2]
[357960696,1744620643736,-317.80624382,0.00019178,2]
[357960699,1744620643761,-182.19375618,0.00019178,2]
[357960701,1744620643770,-500.0,0.00019178,2]
[357960703,1744620643780,-553.52918989,0.00019178,2]
[357960705,1744620643790,-500.0,0.00019178,2]
[357960707,1744620643799,-500.0,0.00019178,2]
[357960709,1744620643809,-500.0,0.00019178,2]
[357960711,1744620643818,-500.0,0.00019178,2]
[357960713,1744620643828,-619.36,0.00019178,2]
[357960715,1744620643837,-248.01431448,0.00019178,2]
[357960718,1744620643849,-251.98568552,0.00019178,2]
[357960720,1744620643859,-59.21431448,0.00019178,2]
[357960729,1744620644058,-440.78568552,0.00019178,2]
[357960730,1744620644068,-500.0,0.00019178,2]
[357960731,1744620644077,-500.0,0.00019178,2]
[357960732,1744620644087,-500.0,0.00019178,2]
[357960733,1744620644096,-500.0,0.00019178,2]
[357960734,1744620644106,-500.0,0.00019178,2]
[357960735,1744620644115,-500.0,0.00019178,2]
[357960736,1744620644126,-500.0,0.00019178,2]
[357960737,1744620644136,-500.0,0.00019178,2]
[357960738,1744620644146,-538.7290083,0.00019178,2]
[357960739,1744620644155,-500.0,0.00019178,2]
[357960740,1744620644166,-500.0,0.00019178,2]
[357960742,1744620644176,-500.0,0.00019178,2]
[357960744,1744620644185,-500.0,0.00019178,2]
[357960746,1744620644195,-500.0,0.00019178,2]
[357960748,1744620644203,-622.38005136,0.00019178,2]
[357960750,1744620644213,-500.0,0.00019178,2]
[357960752,1744620644222,-500.0,0.00019178,2]
[357960754,1744620644231,-500.0,0.00019178,2]
[357960756,1744620644240,-500.0,0.00019178,2]
[357960758,1744620644249,-500.0,0.00019178,2]
[357960759,1744620644258,-4458.17,0.00019178,2]
[357960760,1744620644268,-500.0,0.00019178,2]
[357960761,1744620644277,-490.0,0.00019178,2]
[357960762,1744620644286,-500.0,0.00019178,2]
[357960763,1744620644294,-500.0,0.00019178,2]
[357960764,1744620644303,-507.01884421,0.00019178,2]
[357960765,1744620644313,-151.0,0.00019178,2]
[357960766,1744620644327,-500.0,0.00019178,2]
[357960767,1744620644336,-500.0,0.00019178,2]
[357960768,1744620644346,-500.0,0.00019178,2]
[357960769,1744620644356,-399.7,0.00019178,2]
[357960770,1744620644366,-500.0,0.00019178,2]
[357960771,1744620644376,-500.0,0.00019178,2]
[357960772,1744620644386,-500.0,0.00019178,2]
[357960773,1744620644397,-512.86312731,0.00019178,2]
[357960774,1744620644407,-500.0,0.00019178,2]
[357960775,1744620644416,-500.0,0.00019178,2]
[357960776,1744620644426,-500.0,0.00019178,2]
[357960777,1744620644435,-500.0,0.00019178,2]
[357960778,1744620644444,-500.0,0.00019178,2]
[357960779,1744620644454,-500.0,0.00019178,2]
[357960780,1744620644464,-500.0,0.00019178,2]
[357960782,1744620644474,-500.0,0.00019178,2]
[357960783,1744620644484,-500.0,0.00019178,2]
[357960784,1744620644493,-500.0,0.00019178,2]
[357960785,1744620644503,-500.0,0.00019178,2]
[357960786,1744620644513,-912.84,0.00019178,2]
[357960787,1744620644522,-627.07,0.00019178,2]
[357960788,1744620644531,-500.0,0.00019178,2]
[357960789,1744620644541,-500.0,0.00019178,2]
[357960790,1744620644551,-500.0,0.00019178,2]
[357960791,1744620644560,-500.0,0.00019178,2]
[357960792,1744620644570,-500.0,0.00019178,2]
[357960793,1744620644579,-500.0,0.00019178,2]
[357960794,1744620644588,-172.93193658,0.00019178,2]
[357960795,1744620644598,-313.03835211,0.00019178,2]
[357960796,1744620644608,-500.0,0.00019178,2]
[357960797,1744620644617,-500.0,0.00019178,2]
[357960798,1744620644626,-500.0,0.00019178,2]
[357960799,1744620644636,-500.0,0.00019178,2]
[357960800,1744620644645,-584.464357,0.00019178,2]
[357960801,1744620644655,-500.0,0.00019178,2]
[357960802,1744620644664,-588.21515634,0.00019178,2]
[357960803,1744620644673,-500.0,0.00019178,2]
[357960804,1744620644683,-500.0,0.00019178,2]
[357960805,1744620644692,-500.0,0.00019178,2]
[357960806,1744620644702,-182.57510806,0.00019178,2]
[357960807,1744620644711,-500.0,0.00019178,2]
[357960808,1744620644721,-504.23171124,0.00019178,2]
[357960809,1744620644730,-369.32654153,0.00019178,2]
[357960810,1744620644740,-500.0,0.00019178,2]
[357960811,1744620644749,-568.08947205,0.00019178,2]
[357960812,1744620644759,-500.0,0.00019178,2]
[357960813,1744620644768,-500.0,0.00019178,2]
[357960814,1744620644778,-500.0,0.00019178,2]
[357960815,1744620644787,-500.0,0.00019178,2]
[357960816,1744620644796,-500.0,0.00019178,2]
[357960817,1744620644805,-500.0,0.00019178,2]
[357960818,1744620644815,-500.0,0.00019178,2]
[357960819,1744620644825,-500.0,0.00019178,2]
[357960820,1744620644834,-500.0,0.00019178,2]
[357960821,1744620644844,-500.0,0.00019178,2]
[357960822,1744620644853,-500.0,0.00019178,2]
[357960823,1744620644863,-500.0,0.00019178,2]
[357960824,1744620644873,-500.0,0.00019178,2]
[357960825,1744620644883,-500.0,0.00019178,2]
[357960826,1744620644893,-500.0,0.00019178,2]
[357960827,1744620644903,-500.0,0.00019178,2]
[357960828,1744620644914,-603.03690998,0.00019178,2]
[357960829,1744620644924,-500.0,0.00019178,2]
[357960830,1744620644933,-531.93844187,0.00019178,2]
[357960831,1744620644943,-500.0,0.00019178,2]
[357960832,1744620644954,-504.1633221,0.00019178,2]
[357960833,1744620644964,-500.0,0.00019178,2]
[357960834,1744620644974,-500.0,0.00019178,2]
[357960835,1744620644984,-500.0,0.00019178,2]
[357960836,1744620644994,-500.0,0.00019178,2]
[357960837,1744620645004,-500.0,0.00019178,2]
[357960838,1744620645013,-500.0,0.00019178,2]
[357960839,1744620645022,-507.15322763,0.00019178,2]
[357960840,1744620645032,-150.0,0.00019178,2]
[357960841,1744620645042,-150.0,0.00019178,2]
[357960842,1744620645051,-500.0,0.00019178,2]
[357960843,1744620645062,-500.0,0.00019178,2]
[357960844,1744620645072,-509.20915493,0.00019178,2]
[357960845,1744620645081,-535.19663594,0.00019178,2]
[357960846,1744620645091,-500.0,0.00019178,2]
[357960847,1744620645100,-500.0,0.00019178,2]
[357960848,1744620645110,-500.0,0.00019178,2]
[357960849,1744620645121,-500.0,0.00019178,2]
[357960850,1744620645131,-500.0,0.00019178,2]
[357960851,1744620645142,-598.75,0.00019178,2]
[357960852,1744620645151,-500.0,0.00019178,2]
[357960853,1744620645161,-565.29805731,0.00019178,2]
[357960854,1744620645171,-500.0,0.00019178,2]
[357960855,1744620645180,-500.0,0.00019178,2]
[357960856,1744620645191,-500.0,0.00019178,2]
[357960857,1744620645201,-500.0,0.00019178,2]
[357960858,1744620645210,-542.89608322,0.00019178,2]
[357960859,1744620645220,-502.52705317,0.00019178,2]
[357960860,1744620645230,-500.0,0.00019178,2]
[357960861,1744620645239,-500.0,0.00019178,2]
[357960862,1744620645248,-500.0,0.00019178,2]
[357960863,1744620645257,-500.0,0.00019178,2]
[357960864,1744620645267,-1368.58,0.00019178,2]
[357960865,1744620645277,-500.0,0.00019178,2]
[357960866,1744620645286,-500.0,0.00019178,2]
[357960867,1744620645296,-500.0,0.00019178,2]
[357960868,1744620645306,-370.48724767,0.00019192,2]
[357960869,1744620645318,-150.0,0.00019233,2]
[357960870,1744620645328,-150.0,0.00019233,2]
[357960871,1744620645337,-1173.17211231,0.00019261,2]
[357960872,1744620645346,-200.0,0.00019288,2]
[357960873,1744620645356,-150.0,0.00019288,2]
[357960874,1744620645366,-150.0,0.00019342,2]
[357960875,1744620645376,-1173.17211231,0.00019352,2]
[357960876,1744620645385,-248.9216775,0.00019397,2]
[357960877,1744620645397,-1173.17211231,0.00019443,2]
[357960878,1744620645408,-500.0,0.00019451,2]
[357960879,1744620645417,-191.653237,0.00019451,2]
[357960880,1744620645427,-178.08609034,0.00019451,2]
[357960881,1744620645437,-500.0,0.00019451,2]
[357960882,1744620645446,-2223.92,0.00019451,2]
[357960884,1744620645456,-500.0,0.00019452,2]
[357960886,1744620645467,-531.19766003,0.00019452,2]
[357960887,1744620645476,-500.0,0.00019452,2]
[357960888,1744620645488,-500.0,0.00019452,2]
[357960889,1744620645498,-500.0,0.00019452,2]
[357960890,1744620645507,-500.0,0.00019452,2]
[357960891,1744620645518,-500.0,0.00019452,2]
[357960893,1744620645527,-500.0,0.00019452,2]
[357960895,1744620645537,-500.0,0.00019452,2]
[357960897,1744620645546,-500.0,0.00019452,2]
[357960898,1744620645556,-527.14851133,0.00019452,2]
[357960899,1744620645565,-500.0,0.00019452,2]
[357960900,1744620645574,-500.0,0.00019452,2]
[357960901,1744620645584,-500.0,0.00019452,2]
[357960902,1744620645594,-500.0,0.00019452,2]
[357960903,1744620645604,-500.0,0.00019452,2]
[357960904,1744620645613,-500.0,0.00019452,2]
[357960905,1744620645624,-500.0,0.00019452,2]
[357960906,1744620645634,-500.0,0.00019452,2]
[357960907,1744620645643,-500.0,0.00019452,2]
[357960908,1744620645653,-500.0,0.00019452,2]
[357960909,1744620645663,-500.0,0.00019452,2]
[357960910,1744620645673,-500.0,0.00019452,2]
[357960911,1744620645682,-571.69807942,0.00019452,2]
[357960912,1744620645692,-500.0,0.00019452,2]
[357960913,1744620645702,-500.0,0.00019452,2]
[357960914,1744620645712,-500.0,0.00019452,2]
[357960915,1744620645722,-500.0,0.00019452,2]
[357960916,1744620645732,-546.31850816,0.00019452,2]
[357960917,1744620645742,-500.0,0.00019452,2]
[357960918,1744620645751,-500.0,0.00019452,2]
[357960919,1744620645761,-245.13028586,0.00019452,2]
[357960920,1744620645771,-605.26242689,0.00019452,2]
[357960921,1744620645781,-500.0,0.00019452,2]
[357960922,1744620645791,-500.0,0.00019452,2]
[357960923,1744620645800,-500.0,0.00019452,2]
[357960924,1744620645810,-500.0,0.00019452,2]
[357960925,1744620645820,-500.0,0.00019452,2]
[357960926,1744620645830,-500.0,0.00019452,2]
[357960927,1744620645840,-500.0,0.00019452,2]
[357960928,1744620645850,-500.0,0.00019452,2]
[357960929,1744620645860,-500.0,0.00019452,2]
[357960930,1744620645870,-500.0,0.00019452,2]
[357960931,1744620645880,-413.4,0.00019452,2]
[357960932,1744620645890,-500.0,0.00019452,2]
[357960933,1744620645900,-500.0,0.00019452,2]
[357960934,1744620645911,-390.72571515,0.00019452,2]
[357960937,1744620646077,-500.0,0.00019452,2]
[357960939,1744620646087,-500.0,0.00019452,2]
[357960941,1744620646097,-500.0,0.00019452,2]
[357960943,1744620646106,-500.0,0.00019452,2]
[357960945,1744620646116,-500.0,0.00019452,2]
[357960947,1744620646129,-500.0,0.00019452,2]
[357960949,1744620646139,-637.57,0.00019452,2]
[357960950,1744620646149,-502.95613348,0.00019452,2]
[357960951,1744620646158,-500.0,0.00019452,2]
[357960952,1744620646168,-500.0,0.00019452,2]
[357960953,1744620646177,-595.93,0.00019452,2]
[357960954,1744620646187,-500.0,0.00019452,2]
[357960955,1744620646196,-500.0,0.00019452,2]
[357960956,1744620646206,-500.0,0.00019452,2]
[357960957,1744620646215,-235.15065004,0.00019452,2]
[357960958,1744620646225,-500.0,0.00019452,2]
[357960959,1744620646235,-500.0,0.00019452,2]
[357960960,1744620646244,-500.0,0.00019452,2]
[357960961,1744620646254,-550.9226033,0.00019452,2]
[357960962,1744620646263,-394.45925039,0.00019452,2]
[357960963,1744620646272,-432.59301307,0.00019452,2]
[357960964,1744620646282,-500.0,0.00019452,2]
[357960965,1744620646291,-406.56,0.00019452,2]
[357960966,1744620646301,-332.56,0.00019452,2]
[357960967,1744620646310,-486.32,0.00019452,2]
[357960968,1744620646324,-317.65113806,0.00019452,2]
[357960969,1744620646334,-500.0,0.00019452,2]
[357960970,1744620646343,-500.0,0.00019452,2]
[357960971,1744620646352,-500.0,0.00019452,2]
[357960972,1744620646362,-500.0,0.00019452,2]
[357960973,1744620646372,-519.51,0.00019452,2]
[357960974,1744620646382,-500.0,0.00019452,2]
[357960975,1744620646392,-500.0,0.00019452,2]
[357960976,1744620646402,-551.97956989,0.00019452,2]
[357960977,1744620646413,-500.0,0.00019452,2]
[357960978,1744620646423,-1075.58,0.00019452,2]
[357960979,1744620646433,-500.0,0.00019452,2]
[357960980,1744620646441,-500.0,0.00019452,2]
[357960981,1744620646450,-500.0,0.00019452,2]
[357960982,1744620646459,-500.0,0.00019452,2]
[357960983,1744620646469,-500.0,0.00019452,2]
[357960984,1744620646479,-500.0,0.00019452,2]
[357960985,1744620646489,-500.0,0.00019452,2]
[357960986,1744620646499,-500.0,0.00019452,2]
[357960987,1744620646509,-560.7186956,0.00019452,2]
[357960988,1744620646519,-500.0,0.00019452,2]
[357960989,1744620646529,-500.0,0.00019452,2]
[357960990,1744620646539,-500.0,0.00019452,2]
[357960991,1744620646549,-500.0,0.00019452,2]
[357960992,1744620646559,-500.0,0.00019452,2]
[357960993,1744620646568,-500.0,0.00019452,2]
[357960994,1744620646577,-500.0,0.00019452,2]
[357960995,1744620646586,-500.0,0.00019452,2]
[357960996,1744620646595,-581.26,0.00019452,2]
[357960997,1744620646605,-551.73,0.00019452,2]
[357960998,1744620646614,-362.18841201,0.00019452,2]
[357960999,1744620646625,-508.95217236,0.00019452,2]
[357961000,1744620646634,-500.0,0.00019452,2]
[357961001,1744620646643,-236.01,0.00019452,2]
[357961002,1744620646652,-500.0,0.00019452,2]
[357961003,1744620646662,-500.0,0.00019452,2]
[357961004,1744620646671,-500.0,0.00019452,2]
[357961005,1744620646680,-500.0,0.00019452,2]
[357961006,1744620646690,-500.0,0.00019452,2]
[357961007,1744620646699,-500.0,0.00019452,2]
[357961008,1744620646708,-500.0,0.00019452,2]
[357961009,1744620646717,-512.36,0.00019452,2]
[357961010,1744620646728,-506.15435221,0.00019452,2]
[357961011,1744620646737,-500.0,0.00019452,2]
[357961012,1744620646746,-500.0,0.00019452,2]
[357961013,1744620646756,-500.0,0.00019452,2]
[357961014,1744620646767,-500.0,0.00019452,2]
[357961015,1744620646778,-500.0,0.00019452,2]
[357961016,1744620646787,-386.74,0.00019452,2]
[357961017,1744620646797,-500.0,0.00019452,2]
[357961018,1744620646806,-500.0,0.00019452,2]
[357961019,1744620646815,-500.0,0.00019452,2]
[357961020,1744620646824,-500.0,0.00019452,2]
[357961021,1744620646834,-500.0,0.00019452,2]
[357961022,1744620646843,-500.0,0.00019452,2]
[357961023,1744620646854,-504.77405105,0.00019452,2]
[357961024,1744620646863,-500.0,0.00019452,2]
[357961025,1744620646873,-500.0,0.00019452,2]
[357961026,1744620646883,-561.09542457,0.00019452,2]
[357961027,1744620646892,-500.0,0.00019452,2]
[357961028,1744620646902,-500.0,0.00019452,2]
[357961029,1744620646911,-500.0,0.00019452,2]
[357961030,1744620646921,-500.0,0.00019452,2]
[357961031,1744620646931,-500.0,0.00019452,2]
[357961032,1744620646940,-175.19766969,0.00019452,2]
[357961033,1744620646951,-566.39,0.00019452,2]
[357961034,1744620646960,-500.0,0.00019452,2]
[357961035,1744620646970,-500.0,0.00019452,2]
[357961036,1744620646979,-501.64,0.00019452,2]
[357961037,1744620646989,-500.0,0.00019452,2]
[357961038,1744620646998,-500.0,0.00019452,2]
[357961039,1744620647009,-603.97,0.00019452,2]
[357961040,1744620647019,-500.0,0.00019452,2]
[357961041,1744620647029,-500.0,0.00019452,2]
[357961042,1744620647039,-500.0,0.00019452,2]
[357961043,1744620647049,-500.0,0.00019452,2]
[357961044,1744620647059,-500.0,0.00019452,2]
[357961045,1744620647069,-500.0,0.00019452,2]
[357961046,1744620647078,-500.0,0.00019452,2]
[357961047,1744620647088,-556.95,0.00019452,2]
[357961048,1744620647098,-500.0,0.00019452,2]
[357961049,1744620647108,-500.0,0.00019452,2]
[357961050,1744620647119,-500.0,0.00019452,2]
[357961051,1744620647129,-500.0,0.00019452,2]
[357961052,1744620647139,-500.0,0.00019452,2]
[357961053,1744620647149,-500.0,0.00019452,2]
[357961054,1744620647159,-806.33,0.00019452,2]
[357961055,1744620647168,-500.0,0.00019452,2]
[357961056,1744620647178,-500.0,0.00019452,2]
[357961057,1744620647188,-163.58546574,0.00019452,2]
[357961058,1744620647197,-500.0,0.00019452,2]
[357961059,1744620647207,-500.0,0.00019452,2]
[357961060,1744620647217,-500.0,0.00019452,2]
[357961061,1744620647226,-500.0,0.00019452,2]
[357961062,1744620647235,-500.0,0.00019452,2]
[357961063,1744620647244,-500.0,0.00019452,2]
[357961064,1744620647254,-500.0,0.00019452,2]
[357961065,1744620647264,-500.0,0.00019452,2]
[357961066,1744620647274,-500.0,0.00019452,2]
[357961067,1744620647283,-578.57551223,0.00019452,2]
[357961068,1744620647293,-500.0,0.00019452,2]
[357961069,1744620647303,-500.0,0.00019452,2]
[357961070,1744620647312,-500.0,0.00019452,2]
[357961071,1744620647327,-500.0,0.00019452,2]
[357961072,1744620647336,-1708.96,0.00019452,2]
[357961073,1744620647346,-515.98720866,0.00019452,2]
[357961074,1744620647356,-525.86329707,0.00019452,2]
[357961075,1744620647367,-549.81,0.00019452,2]
[357961076,1744620647376,-500.0,0.00019452,2]
[357961077,1744620647386,-405.11,0.00019452,2]
[357961078,1744620647399,-500.0,0.00019452,2]
[357961079,1744620647408,-613.74,0.00019452,2]
[357961080,1744620647418,-500.0,0.00019452,2]
[357961081,1744620647427,-18004.62,0.00019452,2]
[357961082,1744620647437,-500.0,0.00019452,2]
[357961083,1744620647447,-348.3,0.00019452,2]
[357961084,1744620647456,-500.0,0.00019452,2]
[357961085,1744620647465,-500.0,0.00019452,2]
[357961086,1744620647475,-500.0,0.00019452,2]
[357961087,1744620647485,-526.33,0.00019452,2]
[357961088,1744620647495,-500.0,0.00019452,2]
[357961089,1744620647505,-500.0,0.00019452,2]
[357961090,1744620647513,-500.0,0.00019452,2]
[357961091,1744620647522,-349.47,0.00019452,2]
[357961092,1744620647531,-524.61717776,0.00019452,2]
[357961093,1744620647540,-500.0,0.00019452,2]
[357961094,1744620647550,-500.0,0.00019452,2]
[357961095,1744620647560,-428.08,0.00019452,2]
[357961096,1744620647569,-500.0,0.00019452,2]
[357961097,1744620647579,-500.0,0.00019452,2]
[357961098,1744620647588,-427.09,0.00019452,2]
[357961099,1744620647598,-500.0,0.00019452,2]
[357961100,1744620647608,-500.0,0.00019452,2]
[357961101,1744620647618,-593.84455762,0.00019452,2]
[357961102,1744620647629,-500.0,0.00019452,2]
[357961103,1744620647639,-570.51064157,0.00019452,2]
[357961104,1744620647649,-500.0,0.00019452,2]
[357961105,1744620647659,-500.0,0.00019452,2]
[357961106,1744620647668,-500.0,0.00019452,2]
[357961107,1744620647678,-615.78106471,0.00019452,2]
[357961108,1744620647688,-500.0,0.00019452,2]
[357961109,1744620647698,-500.0,0.00019452,2]
[357961110,1744620647708,-500.0,0.00019452,2]
[357961111,1744620647717,-259.68,0.00019452,2]
[357961112,1744620647727,-387.17664267,0.00019452,2]
[357961113,1744620647737,-239.31,0.00019452,2]
[357961114,1744620647747,-500.0,0.00019452,2]
[357961115,1744620647756,-259.83630083,0.00019452,2]
[357961116,1744620647766,-4458.17,0.00019452,2]
[357961117,1744620647775,-500.0,0.00019452,2]
[357961118,1744620647785,-500.0,0.00019452,2]
[357961119,1744620647795,-500.0,0.00019452,2]
[357961120,1744620647805,-500.0,0.00019452,2]
[357961121,1744620647815,-500.0,0.00019452,2]
[357961122,1744620647824,-530.59029418,0.00019452,2]
[357961123,1744620647834,-500.0,0.00019452,2]
[357961124,1744620647843,-528.09546063,0.00019452,2]
[357961125,1744620647853,-430.57,0.00019452,2]
[357961126,1744620647863,-500.0,0.00019452,2]
[357961127,1744620647873,-500.0,0.00019452,2]
[357961128,1744620647882,-500.0,0.00019452,2]
[357961129,1744620647892,-500.0,0.00019452,2]
[357961130,1744620647902,-500.0,0.00019452,2]
[357961131,1744620647912,-912.84,0.00019452,2]
[357961132,1744620647921,-440.40168611,0.00019452,2]
[357961133,1744620647931,-617.72198286,0.00019452,2]
[357961134,1744620647941,-179.39370182,0.00019452,2]
[357961135,1744620647950,-500.0,0.00019452,2]
[357961136,1744620647960,-364.21581263,0.00019452,2]
[357961137,1744620647969,-500.0,0.00019452,2]
[357961138,1744620647979,-156.09899706,0.00019452,2]
[357961139,1744620647988,-500.0,0.00019452,2]
[357961140,1744620647998,-500.0,0.00019452,2]
[357961141,1744620648007,-500.0,0.00019452,2]
[357961142,1744620648017,-202.01389214,0.00019452,2]
[357961143,1744620648026,-500.0,0.00019452,2]
[357961144,1744620648036,-500.0,0.00019452,2]
[357961145,1744620648047,-500.0,0.00019452,2]
[357961146,1744620648057,-500.0,0.00019452,2]
[357961147,1744620648067,-500.0,0.00019452,2]
[357961148,1744620648077,-500.0,0.00019452,2]
[357961149,1744620648086,-500.0,0.00019452,2]
[357961150,1744620648095,-500.0,0.00019452,2]
[357961151,1744620648105,-500.0,0.00019452,2]
[357961152,1744620648115,-500.0,0.00019452,2]
[357961153,1744620648125,-500.0,0.00019452,2]
[357961154,1744620648135,-500.0,0.00019452,2]
[357961155,1744620648145,-598.75,0.00019452,2]
[357961156,1744620648155,-500.0,0.00019452,2]
[357961157,1744620648164,-500.0,0.00019452,2]
[357961158,1744620648174,-500.0,0.00019452,2]
[357961159,1744620648183,-500.0,0.00019452,2]
[357961160,1744620648192,-500.0,0.00019452,2]
[357961161,1744620648201,-500.0,0.00019452,2]
[357961162,1744620648211,-500.0,0.00019452,2]
[357961163,1744620648223,-1368.58,0.00019452,2]
[357961164,1744620648237,-500.0,0.00019452,2]
[357961165,1744620648247,-155.394914,0.00019452,2]
[357961166,1744620648258,-1173.17211231,0.00019535,2]
[357961167,1744620648268,-1173.17211231,0.00019626,2]
[357961168,1744620648278,-370.48724767,0.00019693,2]
[357961169,1744620648289,-1000.0,0.000197,2]
[357961170,1744620648299,-2958.7241334,0.00019703,2]
[357961171,1744620648312,-1479.36206674,0.00019713,2]
[357961172,1744620648332,-1173.17211231,0.00019717,2]
[357961173,1744620648343,-1479.36206674,0.00019722,2]
[357961174,1744620648352,-1124.18,0.00019725,2]
[357961175,1744620648362,-500.0,0.00019725,2]
[357961176,1744620648373,-500.0,0.00019726,2]
[357961177,1744620648384,-500.0,0.00019726,2]
[357961178,1744620648394,-500.0,0.00019726,2]
[357961179,1744620648403,-500.0,0.00019726,2]
[357961180,1744620648414,-500.0,0.00019726,2]
[357961181,1744620648423,-500.0,0.00019726,2]
[357961182,1744620648432,-510.25170695,0.00019726,2]
[357961183,1744620648441,-500.0,0.00019726,2]
[357961184,1744620648450,-500.0,0.00019726,2]